Cogmind - Beta 14 @@@ ROGUE MODE // 2024.12.05 @ 15:45:33 Player: Skullbearer Result: Destroyed by as-80139 with Assembled Heavy Rifle Performance ------------- Evolutions (0) 0 Regions Visited (2) 400 Robots Destroyed (14) 70 Value Destroyed (447) 447 Prototype IDs (0) 0 Alien Tech Used (0) 0 Bonus (0) 0 TOTAL SCORE: 917 Bonus ------- None Cogmind --------- Core Integrity 0/250 Matter 276/300 Energy 158/160 System Corruption 0% Temperature Warm (104) Movement Rolling (90) Location -10/Mines Parts ------- > --- POWER (1) -------- Light Nuclear Core > --- PROPULSION (2) --- Wheel Compact Wheel > --- UTILITY (2) ------ Improved Heat Sink Small Storage Unit > --- WEAPON (2) ------- Beam Cannon > --- INVENTORY (8) ---- Ion Engine Ion Engine Light Treads Light Treads Wheel Improved Heat Sink Particle Gun Mining Laser Peak State ------------ > --- POWER ------------ Light Nuclear Core > --- PROPULSION ------- Wheel Compact Wheel > --- UTILITY ---------- Improved Heat Sink Small Storage Unit > --- WEAPON ----------- Beam Cannon Beam Cannon > --- INVENTORY -------- Ion Engine Ion Engine Light Treads Light Treads Wheel Improved Heat Sink Particle Gun Mining Laser [Rating: 12] Favorites ----------- Power Ion Engine Engine Ion Engine Power Core Light Nuclear Core Propulsion Compact Wheel Treads Light Treads Wheel Compact Wheel Utility Small Storage Unit Device Structural Scanner Storage Small Storage Unit Weapon Light Assault Rifle Energy Gun Small Laser Energy Cannon Beam Cannon Ballistic Gun Light Assault Rifle Build | -11 -10 -10 ------- Run | Yrd Mat Min Slots Evolved . | . . . Power . | . . . Propulsion . | . . . Utility . | . . . Weapon . | . . . Parts Attached 19 | 8 11 . Power 4 | 1 3 . Engine 3 | 1 2 . Core 1 | . 1 . Reactor . | . . . Propulsion 6 | 4 2 . Treads 2 | 2 . . Leg . | . . . Wheel 4 | 2 2 . Hover . | . . . Flight . | . . . Utility 3 | 1 2 . Device 2 | . 2 . Storage 1 | 1 . . Processor . | . . . Hackware . | . . . Protection . | . . . Artifact . | . . . Weapon 6 | 2 4 . Energy Gun 2 | . 2 . Energy Cannon 2 | . 2 . Ballistic Gun 2 | 2 . . Ballistic Cannon . | . . . Launcher . | . . . Special Weapon . | . . . Impact Weapon . | . . . Slashing Weapon . | . . . Piercing Weapon . | . . . Special Melee Weapon . | . . . Unidentified Prototypes . | . . . Parts Lost 5 | . 4 1 Power 1 | . 1 . Propulsion 2 | . 2 . Utility . | . . . Weapon 2 | . 1 1 Highest Loss Streak 2 | . 2 1 To Critical Strikes . | . . . Average Slot Usage (%) 94 | . 94 96 Engine 10 | . 11 . Core 2 | . 1 14 Wheel 25 | . 25 28 Device 12 | . 11 14 Storage 14 | . 14 14 Energy Gun 4 | . 4 . Energy Cannon 7 | . 5 24 Ballistic Gun 15 | . 17 . Peak Build Rating 12 | 6 12 12 Average Rating 6 | 5 7 11 On Entrance 6 | . 6 12 Naked Turns . | . . . Heaviest Build 17 | 13 17 17 Greatest Support 40 | 40 32 26 Greatest Overweight (x) 1 | . 1 . Average Overweight (x) . | . . . Largest Inventory Capacity 8 | 8 8 8 Average Capacity 7 | 7 8 8 Most Carried 8 | 8 8 8 Average Carried 7 | 4 7 8 Final Capacity 8 | 8 8 8 Final Carried 8 | 8 8 8 Class Distribution -------------------- 83% | Mutant 16% | Scavenger-Mutant Dominant Class ---------------- Mutant | -10/Materials Scavenger-Mutant | -10/Mines Resources | -11 -10 -10 ----------- Run | Yrd Mat Min Matter Collected 569 | 274 295 . Remotely . | . . . Salvage Created 584 | 70 481 33 Parts 36 | 4 32 . Haulers Intercepted . | . . . Recyclers Shooed . | . . . Parts Field Recycled . | . . . Retrieved Matter . | . . . Parts Self-Destructed . | . . . Prevented . | . . . Kills | -11 -10 -10 ------- Run | Yrd Mat Min Combat Hostiles Destroyed 14 | . 12 2 Guns 8 | . 8 . Cannons 5 | . 4 1 Classes Destroyed 4 | 2 1 1 Tunneler 1 | 1 . . Recycler 1 | 1 . . Grunt 12 | . 12 . Assembled 2 | . . 2 Best Kill Streak 4 | 2 4 2 Combat Bots Only 4 | . 4 2 Max Kills in Single Turn 1 | 1 1 1 Gunslinging . | . . . Exploded . | . . . Melee . | . . . Uniques/NPCs Destroyed . | . . . Combat | -11 -10 -10 -------- Run | Yrd Mat Min Hostile Shots Fired 91 | . 73 18 Missed 16 | . 13 3 Damage Taken 907 | . 714 193 Core 257 | . 209 48 Absorbed by Shields . | . . . Core Remaining (%) 100 | 100 . . Volleys Fired 42 | . 38 4 Largest 2 | . 2 2 Hottest 120 | . 120 120 Shots Fired 84 | . 76 8 Gun 56 | . 56 . Cannon 28 | . 20 8 Launcher . | . . . Special . | . . . Kinetic 48 | . 48 . Thermal 36 | . 28 8 Explosive . | . . . Electromagnetic . | . . . Robot Hit Streak 11 | . 11 2 Robot Miss Streak 2 | . 2 2 Penetration Max . | . . . Secondary Targets 2 | . 2 . Max Gunslinging Chain 1 | . 1 . Shots Hit Robots 58 | . 54 4 Core Hits 25 | 1 21 3 Critical Kills 1 | . . 1 Critical Parts Destroyed . | . . . Critical Strikes 1 | . . 1 Meltdown 1 | . . 1 Melee Attacks . | . . . Impact . | . . . Slashing . | . . . Piercing . | . . . Sneak Attacks . | . . . Combat Hostiles . | . . . Follow-up Attacks . | . . . Damage Inflicted 755 | 7 660 88 Guns 428 | . 428 . Cannons 316 | . 228 88 Explosions . | . . . Melee . | . . . Ramming 11 | 7 4 . Kinetic 362 | . 362 . Thermal 382 | . 294 88 Explosive . | . . . Electromagnetic . | . . . Impact . | . . . Slashing . | . . . Piercing . | . . . Highest Corruption . | . . . Average Corruption . | . . . Corruption Purged . | . . . Corruption Blocked . | . . . Overload Shots . | . . . Overflow Damage . | . . . Projectiles . | . . . Explosions . | . . . Melee . | . . . Knockbacks . | . . . Impact . | . . . Kinetic . | . . . Secondary . | . . . Self-Inflicted Damage 2 | . 2 . Shots . | . . . Rammed 3 | 2 1 . Targets Rammed 5 | 4 1 . Kicked . | . . . Crushed 2 | 2 . . Highest Temperature 631 | . 631 136 Average Temperature 144 | . 153 63 Received Heat Transfer 412 | . 372 40 Effects 9 | . 9 . Energy Bleed 2 | . 2 . Interference 1 | . 1 . Matter Decay 4 | . 4 . Short Circuit 1 | . 1 . Damage (core) 1 | . 1 . Siege Activations . | . . . Robots Corrupted . | . . . Combat Hostiles . | . . . Parts Fried . | . . . Impact Corruptions . | . . . Robots Melted 1 | . . 1 Combat Hostiles 1 | . . 1 Parts Melted 1 | . 1 . Heat Transferred 816 | . 631 185 Parts Sabotaged . | . . . Parts Stolen . | . . . Parts Stripped . | . . . Power Chain Reactions . | . . . Alert | -11 -10 -10 ------- Run | Yrd Mat Min Peak Influence 276 | 10 276 107 Initial 107 | . 6 107 Average 88 | 4 120 105 Maximum Alert Level 1 | . 1 . Low Security (%) 87 | 100 80 100 Level 1 12 | . 19 . Level 2 . | . . . Level 3 . | . . . Level 4 . | . . . Level 5 . | . . . High Security . | . . . Max Security . | . . . Squads Dispatched 3 | . 3 . Investigation 2 | . 2 . Extermination . | . . . Reinforcement 1 | . 1 . Assault . | . . . Garrison . | . . . Intercept . | . . . Searches Triggered . | . . . Construction Impeded . | . . . Haulers Reinforced . | . . . Active Scanning Responses . | . . . Cargo Convoy Interrupts . | . . . Stealth | -11 -10 -10 --------- Run | Yrd Mat Min Distress Signals . | . . . Communications Jammed . | . . . Distress Signals . | . . . Times Spotted 23 | . 14 9 Peak Tracking Total 11 | . 4 11 Tactical Retreats . | . . . Traps | -11 -10 -10 ------- Run | Yrd Mat Min Traps Triggered 1 | . 1 . Indirectly . | . . . Trap Hack Attempts . | . . . Triggered . | . . . Disarmed . | . . . Reprogrammed . | . . . Reused . | . . . Traps Extracted . | . . . Installed . | . . . Triggered . | . . . Machines | -11 -10 -10 ---------- Run | Yrd Mat Min Machines Disabled . | . . . Max in Single Turn . | . . . Machines Repaired . | . . . Machines Dismantled . | . . . Machines Sabotaged . | . . . Overloaded Fab Kills . | . . . Hacking | -11 -10 -10 --------- Run | Yrd Mat Min Machines Accessed 1 | . 1 . Terminals 1 | . 1 . Fabricators . | . . . Repair Stations . | . . . Recycling Units . | . . . Scanalyzers . | . . . Garrison Access . | . . . Total Hacks 2 | . 2 . Successful . | . . . Failed 2 | . 2 . Catastrophic 1 | . 1 . Database Lockouts . | . . . Manual . | . . . Terminals 2 | . 2 . Fabricators . | . . . Repair Stations . | . . . Recycling Units . | . . . Scanalyzers . | . . . Garrison Access . | . . . Terminal Hacks . | . . . Fabricator Hacks . | . . . Repair Station Hacks . | . . . Recycling Unit Hacks . | . . . Scanalyzer . | . . . Garrison Access Hacks . | . . . Unauthorized Hacks . | . . . Terminals . | . . . Fabricators . | . . . Repair Stations . | . . . Recycling Units . | . . . Scanalyzers . | . . . Garrison Access . | . . . Data Cores Recovered . | . . . Used . | . . . Hacking Detections 1 | . 1 . Full Trace Events 1 | . 1 . Feedback Events . | . . . Feedback Blocked . | . . . Robot Schematics Acquired . | . . . Robots Built . | . . . Authchips . | . . . Time . | . . . Total Robot Build Rating . | . . . Part Schematics Acquired . | . . . Parts Built . | . . . Authchips . | . . . Time . | . . . Total Part Build Rating . | . . . Parts Repaired . | . . . Time . | . . . Parts Recycled . | . . . Recycled Matter . | . . . Retrieved Matter . | . . . Retrieved Components . | . . . Parts Scanalyzed . | . . . Part Schematics Acquired . | . . . Parts Damaged . | . . . Bothacking | -11 -10 -10 ------------ Run | Yrd Mat Min Used RIF Installer . | . . . Robots Hacked . | . . . Non-combat . | . . . Combat . | . . . Robot Hacks Applied . | . . . Relay Couplers Released . | . . . Fabnet Peak Effective % . | . . . Robots Rewired . | . . . Allies Hacked . | . . . Hacks Repelled . | . . . Allies | -11 -10 -10 -------- Run | Yrd Mat Min Total Allies . | . . . Largest Group . | . . . Highest-Rated Group . | . . . Highest-Rated Ally . | . . . Total Orders . | . . . Ally Attacks . | . . . Total Damage . | . . . Kills . | . . . Allies Corrupted . | . . . Allies Melted . | . . . Intel | -11 -10 -10 ------- Run | Yrd Mat Min Robot Analysis Total . | . . . Derelict Logs Recovered . | . . . Drone Launches . | . . . Drone Recoveries . | . . . Exploration | -11 -10 -10 ------------- Run | Yrd Mat Min Turns Passed 581 | 152 391 38 Spaces Moved 374 | 90 255 29 Core 4 | 4 . . Treads 58 | 58 . . Legs . | . . . Wheels 312 | 28 255 29 Hover . | . . . Flight . | . . . Fastest Speed 50 | 50 90 90 Average Speed 106 | 136 98 90 Slowest Speed 160 | 160 115 90 Overloaded Moves . | . . . Propulsion Burnouts . | . . . Robots Hopped . | . . . Cave-ins Triggered . | . . . Exploration Rate (%) 18 | 6 35 15 Regions Visited 2 Branch Regions 1 Pre-discovered Areas . | . . . Known Exits Taken . | . . . Unknown Exits Taken 2 | 1 1 . Scrap Searched . | . . . Spaces Dug . | . . . Terrain Destroyed . | . . . Melee . | . . . Projectile . | . . . AOE . | . . . Terrain Rammed . | . . . Walls Destroyed . | . . . Machines Disabled . | . . . Actions | -11 -10 -10 --------- Run | Yrd Mat Min Total 470 | 113 324 33 Wait 13 | . 13 . Move 372 | 89 254 29 Hop . | . . . Pick Up 12 | 10 2 . Fast Attach 11 | 6 5 . Attach 3 | . 3 . Detach . | . . . Swap 5 | 2 3 . Drop 7 | 2 5 . Fire 42 | . 38 4 Melee . | . . . Ram 1 | . 1 . Kick . | . . . Crush 4 | 4 . . Escape Stasis . | . . . Rewire . | . . . Trap . | . . . Miscellaneous . | . . . Route ------- -11/Scrapyard -10/Materials -10/Mines History --------- Turn | Location | Event 19 | -11/Scrapyard | Discovered new exit (range 13) 153 | -11/Scrapyard | Entered Materials 302 | -10/Materials | Build established: Mutant 431 | -10/Materials | Discovered new exit (range 12) 433 | -10/Materials | Core integrity fell below 50% 490 | -10/Materials | Core integrity fell below 20% 544 | -10/Materials | Entered Mines 556 | -10/Mines | Assembled infested the area 582 | -10/Mines | Destroyed by as-80139 with Assembled Heavy Rifle Last Messages --------------- Acquired Imp. Heat Sink. Acquired Lgt. Nuclear Core. Acquired 32 matter. Acquired 50 matter. Acquired Imp. Heat Sink. Acquired Particle Gun. R-06 Scavenger collects Heat Sink. R-06 Scavenger collects Ion Engine. Triggered Alarm Trap. An alarm sounds. ALERT: Alarm triggered, dispatching investigation squad. U-05 Engineer lays Concrete. LOCATION=UNKNOWN GOAL=ESCAPE ALERT: Infestation in the mines, dispatching Demolisher response squad. as-25528 destroyed. as-98205 suffers critical hit (Meltdown). Beam Cannon destroyed. Map ----- +----------------------------------------------------+ | ????????????????????# ???????????????? | | ????????????????????# ???????????????? | | ????????????????????? ??????????????? | | ????????????????????? ??????????????? | | ????????????????????? ??????????????? | | ?????????????????????# ??????????????? | | ?????????????????????# ??????????????? | | ?????????????????????# ??????????????? | | ?????????????????????# ??????????????? | | ????????????????????## ##???????###??? | | ????????????????????# #?????? ???? | | ????????????????????# ##??## #????? | | ??????????????????#### ### #????? | | ?????????????????? ## #????? | | ??????????###?????# ## #????? | | ?????????## #????# ### #??? | | ?????????# ????# #?### #### #?? | | ??????????# ???## ###?# #???? #? | | ??????????# #### ### #????? #? | | ??????????# ## ## #??????? ? | | ???????????# C #???????? ?? | | ???????????# ### #???????????? | | ???????????# #?# #???????????? | | ???????????# #?# #???????????? | | ???????????## #?# #???????????? | | ??????????####@ ##?# ???????????? | | ??????????# a ##?? #???????????? | | ??????????# %a #???###???????????? | | ??????????#a ### a #?????????????????? | | ??????????# ??### #?????????????????? | | ??????????#a?????# #?????????????????? | | ?????????? ?????# #?????????????????? | | ????????? ??????# ?????????????????? | | ???????? ?????? ##????????????????? | | ???????# ??????? #?????????????????? | | ???????# ???????# ?????????????????? | | ???????# ????????## ?????????????????? | | ???????##?????????? ?????????????????? | | ??????????????????? ????????????????? | | ??????????????????? ????????????????? | | ???????????????????###????????????????? | | ??????????????????????????????????????? | | ??????????????????????????????????????? | | ??????????????????????????????????????? | | ??????????????????????????????????????? | | ??????????????????????????????????????? | | ??????????????????????????????????????? | | ??????????????????????????????????????? | | ??????????????????????????????????????? | | ??????????????????????????????????????? | +----------------------------------------------------+ Best States ------------- Heat Dissipation 39 Energy Generation 14 Energy Capacity 250 Matter Stores 300 Matter Capacity 300 Sight Range 16 Terrain Scan Density 10 Evasion (%) 42 Recoil Reduction 2 Item Schematics ----------------- None Robot Schematics ------------------ None Fabricated ------------ Nothing Alien Tech Used ----------------- None Achievements -------------- None Challenges ------------ None Game ------ Seed AluminumProcessingDoomcannon Manual? 0 Play Time 00:06:28 Cumulative 12.0 hours Start 2024.12.05 @ 15:39:09 End 2024.12.05 @ 15:45:33 Sessions 1 Manual Loads 0 Difficulty Rogue Special Mode None Game No. 22 Rogue 22 Adventurer 0 Explorer 0 Win Type - Total 0 Types 0/0/0/0/0/0/0/0/0 Lore% 11 Gallery% 16 Achievement% 14 Wizard Run 0 Options --------- Layout 1 ASCII 0 Keyboard 0 Movement Arrows Keybinds 0 Fullscreen 1 Font 24/Smallcaps Map View 50x35 Zoom Use 0% Tactical HUD 0 Map Filters NONE Filters NONE Steam 1 RUN: cc65de48-f2d6-46bb-beab-f71f5dd1ceef